bitfinex/quotes_BTCUSD_20240902
["timestamp","ask_amount","ask_price","bid_price","bid_amount"]
[1725319258669,0.000816,59443.0,59442.0,1.2562728]
[1725319259815,0.000816,59443.0,59442.0,1.13055111]
[1725319262856,0.000816,59443.0,59442.0,1.06445111]
[1725319264181,0.000816,59443.0,59442.0,0.98915111]
[1725319265520,0.000816,59443.0,59442.0,0.71998211]
[1725319268948,0.000816,59443.0,59442.0,0.18164411]
[1725319268949,0.002816,59443.0,59442.0,0.18164411]
[1725319269164,0.000816,59443.0,59442.0,0.45081311]
[1725319270147,0.000816,59443.0,59442.0,0.71998211]
[1725319271057,0.000816,59443.0,59442.0,0.98915111]
[1725319271311,0.000816,59443.0,59442.0,1.14012244]
[1725319271556,0.000816,59443.0,59442.0,1.43542011]
[1725319272279,0.000816,59443.0,59442.0,1.41842011]
[1725319272496,0.000816,59443.0,59442.0,1.43242011]
[1725319272720,0.000816,59443.0,59442.0,1.44642011]
[1725319272960,0.000816,59443.0,59442.0,1.43242011]
[1725319273167,0.000816,59443.0,59442.0,1.44642011]
[1725319273405,0.000816,59443.0,59442.0,1.66914555]
[1725319273629,0.000816,59443.0,59442.0,1.44642011]
[1725319273844,0.000816,59443.0,59442.0,1.43242011]
[1725319274273,0.000816,59443.0,59442.0,1.44642011]
[1725319274947,0.000816,59443.0,59442.0,1.66914555]
[1725319275383,0.000816,59443.0,59442.0,1.66910286]
[1725319275598,0.000816,59443.0,59442.0,1.44642011]
[1725319276039,0.000816,59443.0,59442.0,1.46642011]
[1725319276261,0.000816,59443.0,59442.0,1.56642011]
[1725319276707,0.000816,59443.0,59442.0,1.83558911]
[1725319278071,0.000816,59443.0,59442.0,1.99241219]
[1725319281202,0.000816,59443.0,59442.0,1.97841219]
[1725319281848,0.000816,59443.0,59442.0,1.99241219]
[1725319282061,0.000816,59443.0,59442.0,3.26771219]
[1725319283186,0.000816,59443.0,59442.0,2.81872011]
[1725319283403,0.000816,59443.0,59442.0,2.00628211]
[1725319283890,0.000816,59443.0,59442.0,2.27545111]
[1725319284110,0.000816,59443.0,59442.0,2.40098392]
[1725319284335,0.000816,59443.0,59442.0,2.13181492]
[1725319284558,0.067116,59443.0,59442.0,2.13181492]
[1725319286828,0.067116,59443.0,59442.0,2.00628211]
[1725319287051,0.067116,59443.0,59442.0,2.13181779]
[1725319287960,0.067116,59443.0,59442.0,0.85651779]
[1725319288181,0.067116,59443.0,59442.0,0.82851779]
[1725319288397,0.067116,59443.0,59442.0,0.84251779]
[1725319289796,0.067116,59443.0,59442.0,0.17864411]
[1725319290009,0.067116,59443.0,59442.0,0.44781311]
[1725319290664,0.067116,59443.0,59442.0,0.46181311]
[1725319290878,0.067116,59443.0,59442.0,0.44781311]
[1725319291098,0.067116,59443.0,59442.0,0.43381311]
[1725319291327,0.069116,59443.0,59442.0,0.46181311]
[1725319291550,0.069116,59443.0,59442.0,0.44781311]
[1725319292199,0.069116,59443.0,59442.0,0.4437835]
[1725319292414,0.069116,59443.0,59442.0,0.4567835]
[1725319292865,0.069116,59443.0,59442.0,0.4427835]
[1725319293311,0.069116,59443.0,59442.0,0.1876145]
[1725319295523,0.069116,59443.0,59442.0,0.0530305]
[1725319297087,0.06508859,59443.0,59442.0,0.0530305]
[1725319297743,0.06508859,59443.0,59442.0,0.0539281]
[1725319297949,0.06590459,59443.0,59442.0,0.0539281]
[1725319298645,0.06390459,59443.0,59442.0,0.0539281]
[1725319299294,0.06590459,59443.0,59442.0,0.0539281]
[1725319299922,0.20048659,59443.0,59442.0,0.0539281]
[1725319300128,0.06590459,59443.0,59442.0,0.0539281]
[1725319303709,1.09118159,59443.0,59442.0,0.0539281]
[1725319304161,1.09118159,59443.0,59442.0,0.0278976]
[1725319304395,0.82201659,59443.0,59442.0,0.0278976]
[1725319304671,0.82201659,59443.0,59442.0,0.0138976]
[1725319304893,0.82201659,59443.0,59442.0,0.0078976]
[1725319305115,0.82301659,59443.0,59442.0,0.0078976]
[1725319305990,0.82301659,59443.0,59442.0,0.0008976]
[1725319306451,0.82301659,59443.0,59442.0,0.0018976]
[1725319307540,0.55385159,59443.0,59442.0,0.0018976]
[1725319308486,0.82301659,59443.0,59442.0,0.0018976]
[1725319308705,0.55385159,59443.0,59442.0,0.0018976]
[1725319309623,0.82301659,59443.0,59442.0,0.0018976]
[1725319310978,1.09218159,59443.0,59442.0,0.0018976]
[1725319311218,1.19218159,59443.0,59442.0,0.0018976]
[1725319317529,1.46134659,59443.0,59442.0,0.0018976]
[1725319317753,2.08820112,59443.0,59442.0,0.0018976]
[1725319317976,0.416924,59430.0,59429.0,0.0497991]
[1725319318205,1.51618759,59430.0,59429.0,0.0497991]
[1725319318422,0.002,59422.0,59419.0,0.1387]
[1725319318660,0.002,59422.0,59415.0,0.7998]
[1725319318661,0.003,59422.0,59418.0,0.18435663]
[1725319318891,0.002,59420.0,59419.0,0.403911]
[1725319319115,0.002,59420.0,59419.0,0.134637]
[1725319320968,0.002,59420.0,59419.0,0.015]
[1725319321231,0.002,59420.0,59419.0,0.01]
[1725319321451,0.002,59420.0,59419.0,0.144637]
[1725319321696,0.02840622,59420.0,59419.0,0.152637]
[1725319321906,0.02840622,59420.0,59419.0,0.018]
[1725319322554,0.02840622,59420.0,59419.0,0.152637]
[1725319323705,0.02840622,59420.0,59419.0,0.018]
[1725319324482,0.02840622,59420.0,59419.0,0.008]
[1725319324922,0.002,59419.0,59418.0,0.134637]
[1725319325587,0.002,59419.0,59412.0,0.0773]
[1725319325588,0.003,59417.0,59416.0,0.134643]
[1725319326042,0.02940622,59420.0,59415.0,0.269289]
[1725319326259,0.001,59419.0,59417.0,0.13464]
[1725319326524,0.001,59418.0,59417.0,0.13464]
[1725319326964,0.001,59419.0,59417.0,0.13464]
[1725319327180,0.02740622,59420.0,59416.0,0.27265174]
[1725319327400,0.02740622,59420.0,59419.0,0.673185]
[1725319327401,0.001,59420.0,59419.0,0.673185]
[1725319327663,0.001,59420.0,59419.0,0.482111]
[1725319327664,0.003,59420.0,59419.0,0.482111]
[1725319327905,0.002,59420.0,59419.0,0.482111]
[1725319328128,0.002,59420.0,59419.0,0.481111]
[1725319328572,0.002,59420.0,59419.0,0.402911]
[1725319329237,0.002,59420.0,59419.0,0.410911]
[1725319329716,0.003,59420.0,59419.0,0.420911]
[1725319330151,0.0674,59420.0,59419.0,0.018]
[1725319330795,0.09380606,59420.0,59419.0,0.018]
[1725319331084,0.09380606,59420.0,59419.0,0.05146889]
[1725319331085,0.49770906,59420.0,59419.0,0.05146889]
[1725319331317,0.49770906,59420.0,59419.0,0.018]
[1725319331560,0.49770906,59420.0,59419.0,0.05146889]
[1725319331781,0.49770906,59420.0,59419.0,0.018]
[1725319331978,0.49770906,59420.0,59419.0,0.05236649]
[1725319332905,0.09380606,59420.0,59419.0,0.05236649]
[1725319333132,0.03040606,59420.0,59419.0,0.05236649]
[1725319336881,0.16504006,59420.0,59419.0,0.05236649]
[1725319337123,0.49980906,59420.0,59419.0,0.05236649]
[1725319338610,0.23054006,59420.0,59419.0,0.05236649]
[1725319339588,0.03040606,59420.0,59419.0,0.07106724]
[1725319339789,0.03040606,59420.0,59419.0,0.05236649]
[1725319340891,0.03040606,59420.0,59419.0,0.18700349]
[1725319341886,0.02940606,59420.0,59419.0,0.45627749]
[1725319342110,0.02940606,59420.0,59419.0,0.81980993]
[1725319342111,0.02740606,59420.0,59419.0,0.81980993]
[1725319343019,0.02740606,59420.0,59419.0,1.08908393]
[1725319343304,0.02740606,59420.0,59419.0,1.23248393]
[1725319343531,0.02740606,59420.0,59419.0,1.52475793]
[1725319343767,0.001,59420.0,59419.0,1.52475793]
[1725319343987,0.001,59420.0,59419.0,1.65024566]
[1725319344659,0.001816,59420.0,59419.0,1.64224566]
[1725319344923,0.000816,59420.0,59419.0,1.64624566]
[1725319345321,0.000816,59420.0,59419.0,1.53475793]
[1725319345755,0.000816,59420.0,59419.0,1.66029675]
[1725319345994,0.000816,59420.0,59419.0,1.72305579]
[1725319346462,0.000816,59420.0,59419.0,1.59751113]
[1725319346696,0.000816,59420.0,59419.0,1.72307021]
[1725319346911,0.000816,59420.0,59419.0,1.59751113]
[1725319347138,0.000816,59420.0,59419.0,1.30523713]
[1725319347313,0.000816,59420.0,59419.0,1.27378908]
[1725319348011,0.00059289,59420.0,59419.0,1.27378908]
[1725319348228,0.00059289,59420.0,59419.0,1.14822549]
[1725319348438,0.00059289,59420.0,59419.0,1.27381151]
[1725319349613,0.00059289,59420.0,59419.0,1.14822549]
[1725319350669,0.00059289,59420.0,59419.0,0.87895149]
[1725319350918,0.54509589,59420.0,59419.0,0.06236649]
[1725319351177,1.28024853,59420.0,59419.0,0.06236649]
[1725319351382,0.94076878,59420.0,59419.0,0.07521817]
[1725319351615,0.94076878,59420.0,59419.0,0.0288976]
[1725319351867,0.94076878,59420.0,59419.0,0.0008976]
[1725319352101,0.26759678,59420.0,59419.0,0.0078976]
[1725319352344,0.32613078,59420.0,59419.0,0.0138976]
[1725319352565,0.32613078,59420.0,59419.0,0.0078976]
[1725319353005,0.32613078,59420.0,59419.0,0.0098976]
[1725319353233,0.32613078,59420.0,59419.0,0.0028976]
[1725319353448,0.59539978,59420.0,59419.0,0.0028976]
[1725319354329,0.59339978,59420.0,59419.0,0.0008976]
[1725319354561,0.86466878,59420.0,59419.0,0.0008976]
[1725319354813,0.59539978,59420.0,59419.0,0.0088976]
[1725319355252,0.59539978,59420.0,59419.0,0.0038976]
[1725319355669,0.59539978,59420.0,59419.0,0.0098976]
[1725319355895,0.86466878,59420.0,59419.0,0.0098976]
[1725319357453,0.19149678,59420.0,59419.0,0.0098976]
[1725319357688,0.19149678,59420.0,59419.0,0.05531026]
[1725319358851,0.19149678,59420.0,59419.0,0.18994726]
[1725319358852,0.02799678,59420.0,59419.0,0.18994726]
[1725319359079,0.02699678,59420.0,59419.0,0.45922126]
[1725319359313,0.00059289,59420.0,59419.0,0.18994726]
[1725319359753,0.00159289,59420.0,59419.0,0.18994726]
[1725319360239,0.00359289,59420.0,59419.0,0.18994726]
[1725319360471,0.00259289,59420.0,59419.0,0.18994726]
[1725319360692,0.00059289,59420.0,59419.0,0.18994726]
[1725319360917,0.00359289,59420.0,59419.0,0.18994726]
[1725319361125,0.00359289,59420.0,59419.0,0.72849526]
[1725319361126,0.00059289,59420.0,59419.0,0.72849526]
[1725319361990,0.00059289,59420.0,59419.0,0.99776926]
[1725319362240,0.00059289,59420.0,59419.0,1.24204122]
[1725319362480,0.00059289,59420.0,59419.0,1.26718421]
[1725319363409,0.00059289,59420.0,59419.0,1.14146926]
[1725319364764,0.00059289,59420.0,59419.0,0.45922126]
[1725319365006,0.00059289,59420.0,59419.0,0.58494502]
[1725319365241,0.00059289,59420.0,59419.0,0.72849526]
[1725319365907,0.00059289,59420.0,59419.0,0.45922126]
[1725319366777,0.00059289,59420.0,59419.0,0.72849526]
[1725319366991,0.00059289,59420.0,59419.0,0.45922126]
[1725319368066,0.00059289,59420.0,59419.0,0.72849526]
[1725319368541,0.02699655,59420.0,59419.0,0.8542196]
[1725319369256,0.00059289,59420.0,59419.0,0.8542196]
[1725319369482,0.00059289,59420.0,59419.0,1.2711936]
[1725319369703,0.00059289,59420.0,59419.0,0.9373196]
[1725319371070,0.00059289,59420.0,59419.0,0.8542196]
[1725319372159,0.00059289,59420.0,59419.0,1.1234936]
[1725319372378,0.00059289,59420.0,59419.0,0.8542196]
[1725319374014,0.00059289,59420.0,59419.0,1.1234936]
[1725319374469,0.00059289,59420.0,59419.0,1.12347048]
[1725319375863,0.00059289,59420.0,59419.0,1.12346262]
[1725319378448,0.00059289,59420.0,59419.0,0.85418862]
[1725319378895,0.00059289,59420.0,59419.0,0.85418625]
[1725319379346,0.00059289,59420.0,59419.0,0.72849526]
[1725319379551,0.00059289,59420.0,59419.0,0.45922126]
[1725319379777,0.00159289,59420.0,59419.0,0.18994726]
[1725319380009,0.00159289,59420.0,59419.0,0.13072971]
[1725319380010,0.00359289,59420.0,59419.0,0.13072971]
[1725319380285,0.06719289,59420.0,59419.0,0.13072971]
[1725319380768,0.06719289,59420.0,59419.0,0.05531026]
[1725319380997,0.20182689,59420.0,59419.0,0.10559145]
[1725319381211,0.27742689,59420.0,59419.0,0.10559145]
[1725319381431,0.14279289,59420.0,59419.0,0.10559145]
[1725319381671,0.27742689,59420.0,59419.0,0.05531026]
[1725319381889,0.54669589,59420.0,59419.0,0.05531026]
[1725319385231,0.81596489,59420.0,59419.0,0.05531026]
[1725319395734,1.08523389,59420.0,59419.0,0.05531026]
[1725319400195,1.08523389,59420.0,59419.0,0.10560301]
[1725319400671,0.74036489,59420.0,59419.0,0.13376578]
[1725319401323,0.74036489,59420.0,59419.0,0.13380835]
[1725319401590,0.00359289,59420.0,59419.0,0.13380835]
[1725319401825,0.40749589,59420.0,59419.0,0.15897601]
[1725319402246,0.13822689,59420.0,59419.0,0.13081324]
[1725319402475,0.00259289,59420.0,59419.0,0.59762424]
[1725319402701,0.00059289,59420.0,59419.0,0.86719526]
[1725319402919,0.00059289,59420.0,59419.0,1.13646926]
[1725319404281,0.00059289,59420.0,59419.0,1.13046926]
[1725319404519,0.00059289,59420.0,59419.0,1.12746926]
[1725319404756,0.00059289,59420.0,59419.0,1.13546926]
[1725319404996,0.00059289,59420.0,59419.0,1.14146926]
[1725319408392,0.00159289,59420.0,59419.0,0.06031026]
[1725319408619,0.40749589,59420.0,59419.0,0.16097315]
[1725319408855,0.75206489,59420.0,59419.0,0.06031026]
[1725319409346,0.75206489,59420.0,59419.0,0.13581453]
[1725319411355,0.75206489,59420.0,59419.0,0.13579593]
[1725319412560,0.81386489,59420.0,59419.0,0.13579593]
[1725319413022,1.08313389,59420.0,59419.0,0.13579593]
[1725319413253,1.08313389,59420.0,59419.0,0.06031026]
[1725319413950,0.73856489,59420.0,59419.0,0.06031026]
[1725319417443,0.73856489,59420.0,59419.0,0.11064036]
[1725319417671,0.73856489,59420.0,59419.0,0.06031026]
[1725319417907,0.46929589,59420.0,59419.0,0.06031026]
[1725319418145,0.46929589,59420.0,59419.0,0.11064036]
[1725319418376,0.46929589,59420.0,59419.0,0.12925296]
[1725319418873,0.46929589,59420.0,59419.0,0.11064036]
[1725319418874,0.40749589,59420.0,59419.0,0.11064036]
[1725319420086,0.13822689,59420.0,59419.0,0.11064036]
[1725319420315,0.13822689,59420.0,59419.0,0.13579593]
[1725319421471,0.13822689,59420.0,59419.0,0.13580915]
[1725319422184,0.13822689,59420.0,59419.0,0.06031026]
[1725319425324,0.13822689,59420.0,59419.0,0.09238986]
[1725319426185,0.13822689,59420.0,59419.0,0.06031026]
[1725319427315,0.00159289,59420.0,59419.0,0.46422126]
[1725319427582,0.00059289,59420.0,59419.0,0.97978903]
[1725319427805,0.00059289,59420.0,59419.0,1.14836926]
[1725319430646,0.00059289,59420.0,59419.0,1.0048935]
[1725319431614,0.00059289,59420.0,59419.0,1.00490322]
[1725319432057,0.00059289,59420.0,59419.0,0.87909526]
[1725319432498,0.20102689,59420.0,59419.0,0.06031026]
[1725319432729,0.47029589,59420.0,59419.0,0.11064465]
[1725319433044,0.47029589,59420.0,59419.0,0.06031026]
[1725319433257,0.76597115,59420.0,59419.0,0.06031026]
[1725319433620,0.76797115,59420.0,59419.0,0.06031026]
[1725319434024,0.76797115,59420.0,59419.0,0.0148976]
[1725319434413,1.03724015,59420.0,59419.0,0.0148976]
[1725319436511,1.21414015,59420.0,59419.0,0.0148976]
[1725319437578,1.21414015,59420.0,59419.0,0.0068976]
[1725319438204,1.21414015,59420.0,59419.0,0.0108976]
[1725319438447,1.21414015,59420.0,59419.0,0.0048976]
[1725319438679,1.21414015,59420.0,59419.0,0.0068976]
[1725319442557,0.86797115,59420.0,59419.0,0.0068976]
[1725319443667,0.12999915,59420.0,59419.0,0.0068976]
[1725319443893,0.12999915,59420.0,59419.0,0.02755136]
[1725319444122,0.02999915,59420.0,59419.0,0.05370446]
[1725319444353,0.12999915,59420.0,59419.0,0.0068976]
[1725319444574,0.12999915,59420.0,59419.0,0.05370446]
[1725319444801,0.26463315,59420.0,59419.0,0.0068976]
[1725319445022,0.26463315,59420.0,59419.0,0.05370446]
[1725319445242,0.26463315,59420.0,59419.0,0.0068976]
[1725319445454,0.26463315,59420.0,59419.0,0.05370446]
[1725319445705,0.26463315,59420.0,59419.0,0.0068976]
[1725319445924,0.26463315,59420.0,59419.0,0.05370446]
[1725319446149,0.26463315,59420.0,59419.0,0.0068976]
[1725319446389,0.26463315,59420.0,59419.0,0.05370446]
[1725319446616,0.26463315,59420.0,59419.0,0.0068976]
[1725319446843,0.26463315,59420.0,59419.0,0.05370446]
[1725319447021,0.26463315,59420.0,59419.0,0.0068976]
[1725319447282,0.26463315,59420.0,59419.0,0.05370446]
[1725319447500,0.26463315,59420.0,59419.0,0.0068976]
[1725319447726,0.26463315,59420.0,59419.0,0.05370446]
[1725319447954,0.26463315,59420.0,59419.0,0.0068976]
[1725319448442,0.12999915,59420.0,59419.0,0.05370446]
[1725319448675,0.12999915,59420.0,59419.0,0.0068976]
[1725319448882,0.26463315,59420.0,59419.0,0.05370446]
[1725319449100,0.26463315,59420.0,59419.0,0.0068976]
[1725319449307,0.26463315,59420.0,59419.0,0.05370446]
[1725319449491,0.26463315,59420.0,59419.0,0.0068976]
[1725319449755,0.26463315,59420.0,59419.0,0.05370446]
[1725319449972,0.26463315,59420.0,59419.0,0.0068976]
[1725319450229,0.26463315,59420.0,59419.0,0.05370446]
[1725319451323,0.53390215,59420.0,59419.0,0.05370446]
[1725319453105,1.23064015,59420.0,59419.0,0.05370446]
[1725319453326,1.2763729,59420.0,59419.0,0.05370446]
[1725319453536,1.5456419,59420.0,59419.0,0.0068976]
[1725319453757,1.55705858,59420.0,59419.0,0.0068976]
[1725319454002,1.49990915,59420.0,59419.0,0.0068976]
[1725319454234,1.49990915,59420.0,59419.0,0.0028976]
[1725319455308,1.49990915,59420.0,59419.0,0.0008976]
[1725319456157,1.49990915,59420.0,59419.0,0.0018976]
[1725319457895,1.66793684,59420.0,59419.0,0.0018976]
[1725319458120,1.49990915,59420.0,59419.0,0.0018976]
[1725319458806,1.50190915,59420.0,59419.0,0.0018976]
[1725319460111,1.50190915,59420.0,59406.0,0.0008976]
[1725319460112,1.352576,59407.0,59406.0,0.0008976]
[1725319460357,1.51958764,59407.0,59406.0,0.0008976]
[1725319460586,1.61958764,59407.0,59406.0,0.0008976]
[1725319460802,1.64600371,59407.0,59406.0,0.0008976]
[1725319462132,1.64600371,59407.0,59406.0,0.0018976]
[1725319462133,1.76295371,59407.0,59406.0,0.0018976]
[1725319462808,1.77495371,59407.0,59406.0,0.0028976]
[1725319463032,1.77695371,59407.0,59406.0,0.0018976]
[1725319463264,1.76995371,59407.0,59406.0,0.0008976]
[1725319463512,1.78395371,59407.0,59406.0,0.0018976]
[1725319463752,1.79195371,59407.0,59406.0,0.0018976]
[1725319463971,1.68200371,59407.0,59406.0,0.0018976]
[1725319464202,1.99374571,59407.0,59406.0,0.0018976]
[1725319464431,2.00574571,59407.0,59406.0,0.0018976]
[1725319464655,1.97974571,59407.0,59406.0,0.0008976]
[1725319464869,1.98174571,59407.0,59406.0,0.0008976]
[1725319465094,1.99274571,59407.0,59406.0,0.0008976]
[1725319465323,1.76950371,59407.0,59406.0,0.0008976]
[1725319465563,1.66000371,59407.0,59406.0,0.0008976]
[1725319465784,1.67400371,59407.0,59406.0,0.0008976]
[1725319466685,1.68512807,59407.0,59406.0,0.0008976]
[1725319466892,1.68712807,59407.0,59406.0,0.0008976]
[1725319467105,2.13133707,59407.0,59406.0,0.0008976]
[1725319467360,2.30054026,59407.0,59406.0,0.0008976]
[1725319467995,2.28654026,59407.0,59406.0,0.0008976]
[1725319468237,2.28854026,59407.0,59406.0,0.0008976]
[1725319468478,2.30154026,59407.0,59406.0,0.0008976]
[1725319468691,2.06237107,59407.0,59406.0,0.0008976]
[1725319468906,1.97545607,59407.0,59406.0,0.0008976]
[1725319469559,1.61872807,59407.0,59406.0,0.0008976]
[1725319469785,1.60572807,59407.0,59406.0,0.0008976]
[1725319470087,1.59572807,59407.0,59406.0,0.0008976]
[1725319470296,1.60972807,59407.0,59406.0,0.0008976]
[1725319472302,1.54752807,59407.0,59406.0,0.0008976]
[1725319473880,1.00887207,59407.0,59406.0,0.0008976]
[1725319474113,0.85186043,59407.0,59406.0,0.0672976]
[1725319474329,0.84186043,59407.0,59406.0,0.0672976]
[1725319474555,0.85186043,59407.0,59406.0,0.0672976]
[1725319474787,0.82386043,59407.0,59406.0,0.0672976]
[1725319475038,0.82073607,59407.0,59406.0,0.0672976]
[1725319475243,0.81273607,59407.0,59406.0,0.0672976]
[1725319475495,0.16408007,59407.0,59406.0,0.0672976]
[1725319475708,0.03641607,59407.0,59406.0,0.1445976]
[1725319475950,0.02941607,59407.0,59406.0,0.19103746]
[1725319476379,1.12907571,59407.0,59406.0,0.04733746]
[1725319476585,0.86474771,59407.0,59406.0,0.04733746]
[1725319476797,0.86474771,59407.0,59406.0,0.0008976]
[1725319477023,0.96474771,59407.0,59406.0,0.0008976]
[1725319477231,0.95974771,59407.0,59406.0,0.0008976]
[1725319477443,0.96074771,59407.0,59406.0,0.0008976]
[1725319477932,0.96474771,59407.0,59406.0,0.0008976]
[1725319478146,0.96074771,59407.0,59406.0,0.0008976]
[1725319478595,0.96374771,59407.0,59406.0,0.0008976]
[1725319481074,1.50318178,59407.0,59406.0,0.0008976]
[1725319481533,1.77250978,59407.0,59406.0,0.0008976]
[1725319481768,1.37887571,59407.0,59406.0,0.0008976]
[1725319482239,1.25422147,59407.0,59406.0,0.0008976]
[1725319486830,1.52354947,59407.0,59406.0,0.0008976]
[1725319489118,1.25422147,59407.0,59406.0,0.0008976]
[1725319489743,1.52354947,59407.0,59406.0,0.0008976]
[1725319490849,1.25422147,59407.0,59406.0,0.0008976]
[1725319491903,1.52354947,59407.0,59406.0,0.0008976]
[1725319492141,1.25422147,59407.0,59406.0,0.0008976]
[1725319493910,1.52554947,59407.0,59406.0,0.0008976]
[1725319494119,1.70438945,59407.0,59406.0,0.0008976]
[1725319494356,1.87294109,59407.0,59406.0,0.0008976]
[1725319495044,2.14126909,59407.0,59406.0,0.0008976]
[1725319495270,2.13826909,59407.0,59406.0,0.0008976]
[1725319495706,2.15226909,59407.0,59406.0,0.0008976]
[1725319495941,2.13826909,59407.0,59406.0,0.0008976]
[1725319496429,2.16093486,59407.0,59406.0,0.0008976]
[1725319496857,2.15093486,59407.0,59406.0,0.0008976]
[1725319497295,2.16293486,59407.0,59406.0,0.0008976]
[1725319497509,2.17191086,59407.0,59406.0,0.0008976]
[1725319497714,2.17391086,59407.0,59406.0,0.0008976]
[1725319498373,2.18791086,59407.0,59406.0,0.0008976]
[1725319500616,1.4946796,59407.0,59406.0,0.0008976]
[1725319500883,1.68863533,59407.0,59406.0,0.0008976]
[1725319501121,1.63902547,59407.0,59406.0,0.0008976]
[1725319501381,1.60902547,59407.0,59406.0,0.0008976]
[1725319501611,1.60613533,59407.0,59406.0,0.0008976]
[1725319501842,1.65286545,59407.0,59406.0,0.0008976]
[1725319502082,1.76028201,59407.0,59406.0,0.0008976]
[1725319502314,1.69103533,59407.0,59406.0,0.0008976]
[1725319502532,1.69303533,59407.0,59406.0,0.0008976]
[1725319503664,1.64342547,59407.0,59406.0,0.0008976]
[1725319503894,1.84096545,59407.0,59406.0,0.0008976]
[1725319504116,1.96278697,59407.0,59406.0,0.0008976]
[1725319504361,2.23211497,59407.0,59406.0,0.0008976]
[1725319504601,2.23078074,59407.0,59406.0,0.0008976]
[1725319504825,2.21678074,59407.0,59406.0,0.0008976]
[1725319505050,2.24478074,59407.0,59406.0,0.0008976]
[1725319507462,1.97545274,59407.0,59406.0,0.0008976]
[1725319507684,1.96278697,59407.0,59406.0,0.0008976]
[1725319508154,2.16946979,59407.0,59406.0,0.0008976]
[1725319508373,2.18213556,59407.0,59406.0,0.0008976]
[1725319509092,1.91280756,59407.0,59406.0,0.0008976]
[1725319509543,1.90014179,59407.0,59406.0,0.0008976]
[1725319510005,1.91280756,59407.0,59406.0,0.0008976]
[1725319510651,1.74425592,59407.0,59406.0,0.0008976]
[1725319510881,1.60178029,59407.0,59406.0,0.0008976]
[1725319511339,1.60378029,59407.0,59406.0,0.0008976]
[1725319512927,1.60178029,59407.0,59406.0,0.0008976]
[1725319513797,1.60378029,59407.0,59406.0,0.0008976]
[1725319515156,1.50941383,59407.0,59406.0,0.0008976]
[1725319515354,1.60178029,59407.0,59406.0,0.0008976]
[1725319516481,1.15794512,59407.0,59406.0,0.0774976]
[1725319516698,1.2990417,59407.0,59406.0,0.0774976]
[1725319516931,1.2990417,59407.0,59406.0,0.1400976]
[1725319517180,1.1990417,59407.0,59406.0,0.1400976]
[1725319517395,1.2090417,59407.0,59406.0,0.1400976]
[1725319517614,1.1990417,59407.0,59406.0,0.1400976]
[1725319517848,1.2090417,59407.0,59406.0,0.1400976]
[1725319518282,1.25231158,59407.0,59406.0,0.1400976]
[1725319518535,0.93624829,59407.0,59406.0,0.1400976]
[1725319520368,0.93624829,59407.0,59406.0,0.0774976]
[1725319522592,0.93624829,59407.0,59406.0,0.0624976]
[1725319522848,0.93624829,59407.0,59406.0,0.0374976]
[1725319524149,1.20557629,59407.0,59406.0,0.0374976]
[1725319524585,0.93624829,59407.0,59406.0,0.0374976]
[1725319524797,0.93624829,59407.0,59406.0,0.0324976]
[1725319525021,1.20557629,59407.0,59406.0,0.0324976]
[1725319527972,1.19157629,59407.0,59406.0,0.0324976]
[1725319528426,1.20457629,59407.0,59406.0,0.0324976]
[1725319528653,1.215016,59405.0,59404.0,0.008976]
[1725319528896,1.528416,59405.0,59404.0,0.008976]
[1725319529186,1.628416,59405.0,59404.0,0.008976]
[1725319529409,1.630416,59405.0,59404.0,0.008976]
[1725319529962,1.80396764,59405.0,59404.0,0.008976]
[1725319530656,1.84696764,59405.0,59404.0,0.008976]
[1725319531336,1.85496764,59405.0,59404.0,0.008976]
[1725319532306,1.481684,59405.0,59404.0,0.008976]
[1725319532750,1.348016,59405.0,59404.0,0.008976]
[1725319532986,1.44238246,59405.0,59404.0,0.008976]
[1725319534009,1.44438246,59405.0,59404.0,0.008976]
[1725319534181,1.43438246,59405.0,59404.0,0.008976]
[1725319534974,1.43238246,59405.0,59404.0,0.008976]
[1725319535643,1.48199232,59405.0,59404.0,0.008976]
[1725319535863,1.43238246,59405.0,59404.0,0.008976]
[1725319536080,1.48199232,59405.0,59404.0,0.008976]
[1725319536291,1.43238246,59405.0,59404.0,0.008976]
[1725319536505,1.48399232,59405.0,59404.0,0.008976]
[1725319536724,1.43438246,59405.0,59404.0,0.008976]
[1725319537154,1.43238246,59405.0,59404.0,0.008976]
[1725319538255,1.43438246,59405.0,59404.0,0.008976]
[1725319538680,1.54819246,59405.0,59404.0,0.008976]
[1725319540098,1.7267441,59405.0,59404.0,0.008976]
[1725319540339,1.7367441,59405.0,59404.0,0.008976]
[1725319541474,2.0060811,59405.0,59404.0,0.008976]
[1725319542226,2.01874744,59405.0,59404.0,0.008976]
[1725319542687,2.08847756,59405.0,59404.0,0.008976]
[1725319543621,2.04174744,59405.0,59404.0,0.008976]
[1725319546027,3.11528844,59405.0,59404.0,0.008976]
[1725319546263,2.7651678,59405.0,59404.0,0.008976]
[1725319546485,2.6851088,59405.0,59404.0,0.008976]
[1725319546723,2.0436438,59405.0,59404.0,0.008976]
[1725319548831,2.0456438,59405.0,59404.0,0.008976]
[1725319549749,1.7763068,59405.0,59404.0,0.008976]
[1725319549978,1.76364046,59405.0,59404.0,0.008976]
[1725319551901,1.338016,59405.0,59404.0,0.008976]
[1725319552137,0.20027786,59405.0,59404.0,0.075476]
[1725319552353,0.19739812,59405.0,59404.0,0.154976]
[1725319552578,0.73607212,59405.0,59404.0,0.20207447]
[1725319552788,0.689342,59405.0,59404.0,0.20207447]
[1725319553448,0.689342,59405.0,59404.0,0.154976]
[1725319554101,0.789342,59405.0,59404.0,0.154976]
[1725319556936,0.789342,59405.0,59404.0,0.12765602]
[1725319563777,0.520005,59405.0,59404.0,0.12765602]
[1725319564182,0.520005,59405.0,59404.0,0.17565209]
[1725319564479,0.520821,59405.0,59404.0,0.17565209]
[1725319564854,0.520821,59405.0,59404.0,0.12855362]
[1725319565290,0.520821,59405.0,59404.0,0.17565209]
[1725319565712,0.790158,59405.0,59404.0,0.17565209]
[1725319565918,0.520821,59405.0,59404.0,0.17565209]
[1725319566972,0.790158,59405.0,59404.0,0.17565209]
[1725319567610,0.850458,59405.0,59404.0,0.04799607]
[1725319568055,1.119795,59405.0,59404.0,0.0008976]
[1725319570277,1.25291435,59405.0,59404.0,0.0008976]
[1725319570499,2.39622535,59405.0,59404.0,0.0008976]
[1725319570735,2.35835735,59405.0,59404.0,0.0008976]
[1725319570938,2.39485837,59405.0,59404.0,0.0008976]
[1725319571151,2.40752455,59405.0,59404.0,0.0008976]
[1725319573670,2.72359167,59405.0,59404.0,0.0008976]
[1725319574148,1.386678,59397.0,59396.0,0.008976]
[1725319574369,2.70775558,59397.0,59396.0,0.008976]
[1725319574586,2.75692522,59397.0,59396.0,0.008976]
[1725319574810,2.82732594,59397.0,59396.0,0.008976]
[1725319575481,2.84132594,59397.0,59396.0,0.008976]
[1725319575718,2.86054287,59397.0,59396.0,0.008976]